{"text_format":"3","workbook":"xlsx","n_sheets":3,"sheets":["Student List","Class Roster","Student Details"],"not_rendered":{"images":2,"defined_names":8},"read":"whole","date_system":"1900"}

{"sheet":"Student List","index":0,"n_rows":8,"n_cols":13,"rows_kept":8,"merged":[[1,2,2,3],[1,4,1,11],[2,4,2,11],[6,12,8,16]]}
[]
[null,null,"Seznam študentov",null,"ODPRI RAZREDNI SEZNAM"]
[{"$nulls":4},"ODPRI PODROBNOSTI O ŠTUDENTU"]
[null,null,"IME ŠTUDENTA","E-POŠTA","DOMAČI TELEFON","MOBILNI TELEFON","DATUM ROJSTVA","Stiki v nujnih primerih","TELEFONSKA ŠTEVILKA ZA KLIC V SILI","ZDRAVNIK","TELEFONSKA ŠTEVILKA ZDRAVNIKA","  "]
[null,null,"Ime 1","E-poštni naslov","Domači telefon","Mobilni telefon","Datum","Stik 1","Telefonska številka za klic v sili","Zdravnik 1","Telefonska številka zdravnika"]
[null,null,"Ime 2","E-poštni naslov","Domači telefon","Mobilni telefon","Datum","Stik 2","Telefonska številka za klic v sili","Zdravnik 2","Telefonska številka zdravnika"]
[null,null,"Ime 3","E-poštni naslov","Domači telefon","Mobilni telefon","Datum","Stik 3","Telefonska številka za klic v sili","Zdravnik 3","Telefonska številka zdravnika",null,"Namig: če želite dodati več študentov v zadnji celici tabele, pritisnite tabulatorko."]
[null,null,"Ime 4","E-poštni naslov","Domači telefon","Mobilni telefon","Datum","Stik 4","Telefonska številka za klic v sili","Zdravnik 4","Telefonska številka zdravnika"]

{"sheet":"Class Roster","index":1,"n_rows":12,"n_cols":7,"rows_kept":12,"merged":[[1,2,2,2],[1,3,2,3],[1,4,1,6],[2,4,2,6]]}
[]
[null,null,"Razredni seznam","Inštitut za grafično oblikovanje","ODPRI SEZNAM ŠTUDENTOV"]
[{"$nulls":4},"ODPRI PODROBNOSTI O ŠTUDENTU"]
[null,null,"PREDAVANJE","Ime predavanja","DATUM ZAČETKA","Datum"]
[null,null,"PREDAVATELJ","Predavatelj 1","DATUM ZAKLJUČKA","Datum"]
[null,null,"VPISANI ŠTUDENTI",{"$f":"COUNTA(StudentRoster[IME ŠTUDENTA])","v":4}]
[]
[null,null,"IME ŠTUDENTA","E-POŠTA","DOMAČI TELEFON","MOBILNI TELEFON","  "]
[null,null,"Ime 1",{"$f":"IFERROR(VLOOKUP(StudentRoster[[#This Row],[STUDENT NAME]],Students[],2),\"\")","v":"Email address"},{"$f":"IFERROR(VLOOKUP(StudentRoster[[#This Row],[STUDENT NAME]],Students[],3),\"\")","v":"Home phone"},{"$f":"IFERROR(VLOOKUP(StudentRoster[[#This Row],[STUDENT NAME]],Students[],4),\"\")","v":"Cell phone"}]
[null,null,"Ime 2",{"$f":"IFERROR(VLOOKUP(StudentRoster[[#This Row],[STUDENT NAME]],Students[],2),\"\")","v":"Email address"},{"$f":"IFERROR(VLOOKUP(StudentRoster[[#This Row],[STUDENT NAME]],Students[],3),\"\")","v":"Home phone"},{"$f":"IFERROR(VLOOKUP(StudentRoster[[#This Row],[STUDENT NAME]],Students[],4),\"\")","v":"Cell phone"}]
[null,null,"Ime 3",{"$f":"IFERROR(VLOOKUP(StudentRoster[[#This Row],[STUDENT NAME]],Students[],2),\"\")","v":"Email address"},{"$f":"IFERROR(VLOOKUP(StudentRoster[[#This Row],[STUDENT NAME]],Students[],3),\"\")","v":"Home phone"},{"$f":"IFERROR(VLOOKUP(StudentRoster[[#This Row],[STUDENT NAME]],Students[],4),\"\")","v":"Cell phone"}]
[null,null,"Ime 4",{"$f":"IFERROR(VLOOKUP(StudentRoster[[#This Row],[STUDENT NAME]],Students[],2),\"\")","v":"Email address"},{"$f":"IFERROR(VLOOKUP(StudentRoster[[#This Row],[STUDENT NAME]],Students[],3),\"\")","v":"Home phone"},{"$f":"IFERROR(VLOOKUP(StudentRoster[[#This Row],[STUDENT NAME]],Students[],4),\"\")","v":"Cell phone"}]

{"sheet":"Student Details","index":2,"n_rows":13,"n_cols":4,"rows_kept":13,"merged":[[1,2,2,2],[1,3,1,4],[2,3,2,4],[3,2,3,3]]}
[]
[null,null,"Podrobnosti o študentu","ODPRI SEZNAM ŠTUDENTOV"]
[{"$nulls":3},"ODPRI RAZREDNI SEZNAM"]
[null,null,"NAMIG: IZBERITE ŠTUDENTA S SPUSTNEGA SEZNAMA V CELICI D5, DA POSODOBITE PODATKE O ŠTUDENTU"]
[null,null,"IME ŠTUDENTA","Ime 1"]
[null,null,"E-POŠTA",{"$f":"IFERROR(VLOOKUP(StudentName,Students[],2,FALSE),\"\")","v":"Email address"}]
[null,null,"DOMAČI TELEFON",{"$f":"IFERROR(VLOOKUP(StudentName,Students[],3,FALSE),\"\")","v":"Home phone"}]
[null,null,"MOBILNI TELEFON",{"$f":"IFERROR(VLOOKUP(StudentName,Students[],4,FALSE),\"\")","v":"Cell phone"}]
[null,null,"DATUM ROJSTVA",{"$f":"IFERROR(VLOOKUP(StudentName,Students[],5,FALSE),\"\")","v":"Date"}]
[null,null,"Stiki v nujnih primerih",{"$f":"IFERROR(VLOOKUP(StudentName,Students[],6,FALSE),\"\")","v":"Contact 1"}]
[null,null,"TELEFONSKA ŠTEVILKA ZA KLIC V SILI",{"$f":"IFERROR(VLOOKUP(StudentName,Students[],7,FALSE),\"\")","v":"Emergency phone"}]
[null,null,"ZDRAVNIK",{"$f":"IFERROR(VLOOKUP(StudentName,Students[],8,FALSE),\"\")","v":"Physician 1"}]
[null,null,"TELEFONSKA ŠTEVILKA ZDRAVNIKA",{"$f":"IFERROR(VLOOKUP(StudentName,Students[],9,FALSE),\"\")","v":"Physician phone"}]